bitfinex-derivatives/quotes_SOLF0:USTF0_20250609
["timestamp","ask_amount","ask_price","bid_price","bid_amount"]
[1749486848495,5.48106189,156.19,156.18,13.99072969]
[1749486848700,6.44168682,156.2,156.18,13.99072969]
[1749486848899,0.04258682,156.2,156.19,6.3993]
[1749486849099,5.52300295,156.2,156.19,6.3993]
[1749486850500,0.04258682,156.2,156.19,6.3993]
[1749486852599,0.04258682,156.2,156.17,0.04734684]
[1749486852998,0.04258682,156.2,156.18,6.3997]
[1749486853300,5.4779985,156.19,156.17,0.04734684]
[1749486853503,5.4779985,156.18,156.17,0.04734684]
[1749486853901,11.8776985,156.18,156.17,0.04734684]
[1749486854796,0.04258682,156.2,156.17,0.04734684]
[1749486855005,5.47871384,156.19,156.18,6.3997]
[1749486855194,0.04258682,156.2,156.18,6.3997]
[1749486855699,0.04258682,156.2,156.19,6.3993]
[1749486855900,5.52066614,156.2,156.19,6.3993]
[1749486856302,0.04258682,156.2,156.19,6.3993]
[1749486858503,0.04258682,156.2,156.19,13.99042969]
[1749486860312,0.04258682,156.2,156.19,52.63042969]
[1749486861402,0.04258682,156.2,156.19,45.0393]
[1749486861607,0.04258682,156.2,156.19,52.63042969]
[1749486864114,5.49513999,156.23,156.22,6.3981]
[1749486864417,8.17475501,156.27,156.22,7.59112969]
[1749486864618,5.4946753,156.26,156.24,6.3973]
[1749486867118,6.3969,156.25,156.23,6.44474776]
[1749486867324,5.50346689,156.24,156.23,0.04714776]
[1749486868122,11.90076689,156.24,156.23,0.04714776]
[1749486868317,11.90076689,156.24,156.2,7.59112969]
[1749486868318,5.50346689,156.24,156.2,7.59112969]
[1749486868517,5.50346689,156.23,156.2,7.59112969]
[1749486868720,0.04174184,156.26,156.2,13.99002969]
[1749486869017,5.50542336,156.25,156.2,13.99002969]
[1749486869320,6.398,156.23,156.21,0.04671915]
[1749486870426,6.3981,156.22,156.21,0.04671915]
[1749486870714,11.90377827,156.22,156.21,0.04671915]
[1749486871021,5.50567827,156.22,156.15,38.52]
[1749486871220,7.63287827,156.21,156.15,46.11112969]
[1749486871421,6.3995,156.19,156.16,6.4003]
[1749486871616,2.1272,156.21,156.16,6.4003]
[1749486871814,5.50004522,156.2,156.16,6.4003]
[1749486872016,0.04175829,156.2,156.16,6.44576549]
[1749486872215,6.3994,156.19,156.16,6.44576549]
[1749486872613,6.4001,156.17,156.16,0.04546549]
[1749486872816,5.50114162,156.17,156.11,414.73112969]
[1749486873020,7.59112969,156.19,156.11,414.73112969]
[1749486873222,6.4006,156.16,156.13,6.4018]
[1749486873619,7.59112969,156.19,156.11,414.73112969]
[1749486873821,0.04641394,156.17,156.13,0.04226813]
[1749486874415,6.4008,156.16,156.13,6.44376813]
[1749486874619,7.63754363,156.17,156.13,0.04226813]
[1749486874926,9.85692969,156.15,156.13,0.04226813]
[1749486875121,11.90331635,156.14,156.13,0.04226813]
[1749486875323,5.50191635,156.14,156.11,38.52]
[1749486875520,9.85692969,156.15,156.11,38.52]
[1749486875718,5.50141973,156.14,156.09,7.59112969]
[1749486875923,9.85692969,156.15,156.1,6.4028]
[1749486876125,5.5018027,156.14,156.1,6.4028]
[1749486876426,6.4021,156.13,156.1,6.44744253]
[1749486876822,6.4021,156.13,156.1,0.04464253]
[1749486877020,6.44965747,156.14,156.1,0.04464253]
[1749486877226,6.44965747,156.14,156.11,6.4024]
[1749486877422,0.04805747,156.14,156.11,7.59112969]
[1749486878320,0.04805747,156.14,156.12,6.402]
[1749486878523,0.04805747,156.14,156.11,7.59112969]
[1749486879327,0.04805747,156.14,156.12,6.402]
[1749486881624,6.44945747,156.14,156.12,6.402]
[1749486882634,0.04805747,156.14,156.12,6.402]
[1749486883525,0.04805747,156.14,156.13,6.4018]
[1749486890439,0.04805747,156.14,156.11,46.11112969]
[1749486891136,0.04805747,156.14,156.13,6.4018]
[1749486891946,0.04805747,156.14,156.13,13.99292969]
[1749486894641,2.1954,156.18,156.16,6.4003]
[1749486894950,5.46369887,156.19,156.16,6.4003]
[1749486895150,6.3994,156.19,156.16,6.4003]
[1749486895645,6.44231042,156.19,156.16,6.44824072]
[1749486895845,0.04291042,156.19,156.17,6.4]
[1749486896049,0.04291042,156.19,156.16,7.63907041]
[1749486896646,0.04291042,156.19,156.16,0.04794072]
[1749486897648,6.4,156.18,156.16,0.04794072]
[1749486897847,7.63404011,156.19,156.16,0.04794072]
[1749486898050,5.46856421,156.18,156.16,0.04794072]
[1749486898348,7.63404011,156.19,156.16,0.04794072]
[1749486898542,5.46871925,156.18,156.16,0.04794072]
[1749486898740,7.63404011,156.19,156.16,0.04794072]
[1749486898951,5.46874215,156.18,156.16,0.04794072]
[1749486899150,6.4001,156.17,156.16,0.04794072]
[1749486901956,13.05936907,156.17,156.11,38.38]
[1749486902155,5.46823938,156.16,156.11,44.7823]
[1749486902357,6.4016,156.14,156.11,38.38]
[1749486902655,9.82102969,156.17,156.11,38.38]
[1749486902858,5.51175773,156.16,156.12,0.04742171]
[1749486903057,0.04343943,156.16,156.12,0.04742171]
[1749486903252,6.4016,156.14,156.12,0.04742171]
[1749486903451,0.04343943,156.16,156.12,0.04742171]
[1749486903857,6.4017,156.14,156.12,0.04742171]
[1749486904055,0.04343943,156.16,156.12,0.04742171]
[1749486904956,6.4018,156.13,156.12,0.04742171]
[1749486905151,0.04343943,156.16,156.12,0.04742171]
[1749486906251,6.4018,156.13,156.12,0.04742171]
[1749486908056,6.4015,156.14,156.12,0.04742171]
[1749486908656,6.4012,156.15,156.12,6.44932171]
[1749486909049,6.4012,156.15,156.13,6.4017]
[1749486909248,0.04343943,156.16,156.14,7.59112969]
[1749486909561,0.04343943,156.16,156.12,7.6385514]
[1749486910765,6.401,156.15,156.13,6.4015]
[1749486911461,6.44413943,156.16,156.13,6.4015]
[1749486911664,6.44413943,156.16,156.14,6.4013]
[1749486911863,6.44413943,156.16,156.12,7.6385514]
[1749486912056,0.04343943,156.16,156.12,7.6385514]
[1749486912558,0.04343943,156.16,156.14,6.4011]
[1749486913361,0.04343943,156.16,156.15,6.401]
[1749486913561,0.04343943,156.16,156.12,7.6385514]
[1749486913562,5.51887963,156.16,156.12,7.6385514]
[1749486913761,0.04343943,156.16,156.12,7.6385514]
[1749486914164,0.04343943,156.16,156.14,6.4011]
[1749486914565,5.48151581,156.15,156.14,6.4011]
[1749486915071,5.48151581,156.15,156.13,13.99232969]
[1749486915366,0.04343943,156.16,156.13,6.4012]
[1749486915668,5.48181085,156.15,156.13,6.4012]
[1749486915968,5.48181085,156.15,156.06,381.5086]
[1749486915969,19.04433733,156.14,156.04,40.5468]
[1749486916164,5.48654417,156.13,156.06,7.59112969]
[1749486916357,6.4024,156.1,156.06,7.59112969]
[1749486916560,6.4024,156.1,156.07,6.4033]
[1749486916965,0.04158238,156.1,156.08,13.99402969]
[1749486917165,0.04158238,156.1,156.07,0.04700966]
[1749486917365,0.04158238,156.1,156.07,7.63813935]
[1749486917668,0.04158238,156.1,156.08,6.403]
[1749486919468,0.04158238,156.1,156.09,6.4028]
[1749486919664,0.04158238,156.1,156.07,7.63813935]
[1749486920172,0.04158238,156.1,156.09,6.4028]
[1749486923772,0.04158238,156.1,156.08,6.403]
[1749486924564,0.04158238,156.1,156.07,6.45040966]
[1749486924972,6.4028,156.09,156.07,6.45040966]
[1749486925173,0.04158238,156.1,156.07,0.04700966]
[1749486925174,7.63271207,156.1,156.07,0.04700966]
[1749486926176,6.4032,156.08,156.07,0.04700966]
[1749486926375,7.59112969,156.08,156.04,38.38]
[1749486926572,7.59112969,156.08,156.0,45.99112969]
[1749486926977,6.4038,156.07,156.05,6.4042]
[1749486927278,7.59112969,156.08,156.02,7.59112969]
[1749486927477,0.04166969,156.07,156.03,0.04617634]
[1749486927678,6.44546969,156.07,156.04,6.4045]
[1749486928177,6.44546969,156.07,156.05,6.4044]
[1749486928366,6.44546969,156.07,156.03,0.04617634]
[1749486928773,6.4041,156.06,156.03,0.04617634]
[1749486928974,0.04166969,156.07,156.03,0.04617634]
[1749486929175,0.04166969,156.07,156.03,6.45137634]
[1749486929473,0.04166969,156.07,156.03,0.04617634]
[1749486929679,13.03961072,156.06,156.03,0.04617634]
[1749486929977,5.44921832,156.05,156.03,0.04617634]
[1749486930171,7.59112969,156.06,156.03,0.04617634]
[1749486930372,5.44915459,156.05,156.03,0.04617634]
[1749486930568,7.59112969,156.06,156.03,0.04617634]
[1749486930767,6.4048,156.04,156.03,0.04617634]
[1749486932775,0.04166969,156.07,156.03,0.04617634]
[1749486932980,14.04166969,156.07,156.03,0.04617634]
[1749486934379,21.63279938,156.07,156.03,0.04617634]
[1749486934688,6.4048,156.05,156.03,0.04617634]
[1749486934978,21.63279938,156.07,156.03,0.04617634]
[1749486935783,6.4048,156.05,156.03,0.04617634]
[1749486936482,6.4049,156.04,156.03,0.04617634]
[1749486941880,14.04166969,156.07,156.03,0.04617634]
[1749486942281,6.4041,156.06,156.04,6.4046]
[1749486942981,14.04166969,156.07,156.03,6.45127634]
[1749486943187,6.4044,156.05,156.03,0.04617634]
[1749486944086,6.4049,156.04,156.03,0.04617634]
[1749486945183,6.4057,156.02,155.98,368.72]
[1749486945387,6.4057,156.02,155.98,376.31112969]
[1749486945583,7.59112969,156.06,155.99,6.4067]
[1749486946280,0.04283346,156.04,155.99,6.4067]
[1749486947087,6.406,156.02,156.0,6.4064]
[1749486948589,6.406,156.02,155.99,6.4067]
[1749486948993,6.4062,156.01,155.98,368.72]
[1749486949183,6.4062,156.01,155.98,375.1269]
[1749486949887,6.4065,156.0,155.98,375.1269]
[1749486950085,0.04823259,156.01,155.97,45.85112969]
[1749486950686,0.04823259,156.01,155.97,38.26]
[1749486950983,0.04823259,156.01,155.95,7.59112969]
[1749486951185,6.4082,155.96,155.94,6.4087]
[1749486951385,0.04394823,155.97,155.93,38.26]
[1749486951784,0.04394823,155.97,155.94,6.4088]
[1749486951984,0.04394823,155.97,155.93,38.26]
[1749486952489,6.4084,155.96,155.93,44.6692]
[1749486952684,6.4084,155.96,155.93,38.26]
[1749486952884,6.45194823,155.97,155.93,45.85112969]
[1749486953481,6.45194823,155.97,155.94,6.4087]
[1749486953685,6.4082,155.96,155.93,38.26]
[1749486953879,6.4082,155.96,155.93,6.4091]
[1749486954081,0.04394823,155.97,155.91,7.59112969]
[1749486954280,6.45184823,155.97,155.91,7.59112969]
[1749486954490,6.45184823,155.97,155.94,6.4089]
[1749486955787,6.4081,155.96,155.94,6.4089]
[1749486955992,6.4081,155.96,155.93,6.4092]
[1749486956192,0.04394823,155.97,155.91,7.59112969]
[1749486956491,0.04394823,155.97,155.95,6.4084]
[1749486956691,0.04394823,155.97,155.93,7.59112969]
[1749486956896,0.04394823,155.97,155.96,6.4081]
[1749486958692,14.0,156.04,155.95,45.85112969]
[1749486958890,14.0,156.04,155.98,7.59112969]
[1749486959086,6.4056,156.03,156.0,6.4063]
[1749486959290,14.0,156.04,155.98,7.59112969]
[1749486959594,6.4061,156.02,155.99,6.44886522]
[1749486959892,6.4061,156.02,155.99,0.04226522]
[1749486960691,6.4061,156.02,156.0,6.4064]
[1749486961092,0.04851102,156.03,155.99,0.04226522]
[1749486961491,6.4058,156.02,155.99,0.04226522]
[1749486961888,6.4058,156.02,155.99,6.44896522]
[1749486962597,6.4061,156.01,155.99,6.44896522]
[1749486963197,0.04851102,156.03,155.99,0.04226522]
[1749486963397,6.4063,156.01,155.99,0.04226522]
[1749486963598,0.04851102,156.03,155.99,6.44886522]
[1749486963799,0.04851102,156.03,156.0,7.59112969]
[1749486964099,0.04851102,156.03,156.02,6.4057]
[1749486965094,0.04851102,156.03,156.02,13.99682969]
[1749486965900,0.04851102,156.03,156.01,7.59112969]
[1749486967903,0.04851102,156.03,156.01,13.99702969]
[1749486968099,6.45381102,156.03,156.01,13.99702969]
[1749486968304,6.45381102,156.03,156.01,7.59112969]
[1749486968601,6.45381102,156.03,155.99,38.14226522]
[1749486968602,0.04851102,156.03,155.99,38.14226522]
[1749486968801,6.4065,156.0,155.99,0.04226522]
[1749486971103,6.4088,155.95,155.93,38.08]
[1749486971301,7.59112969,155.99,155.93,38.08]
[1749486971512,7.59112969,155.99,155.93,44.4891]
[1749486971801,6.4084,155.96,155.93,44.4891]
[1749486972202,6.45363918,155.96,155.93,44.4891]
[1749486972805,6.45363918,155.96,155.94,6.4089]
[1749486973104,0.04523918,155.96,155.9,368.96]
[1749486973302,0.04523918,155.96,155.91,38.08]
[1749486973608,0.04523918,155.96,155.91,44.49]
[1749486973803,6.4092,155.94,155.91,38.08]
[1749486974502,6.4087,155.95,155.91,38.08]
[1749486975205,6.4087,155.95,155.92,6.4096]
[1749486975401,6.409,155.94,155.92,6.4096]
[1749486975607,6.409,155.94,155.91,44.49]
[1749486975905,0.04523918,155.96,155.91,44.49]
[1749486975906,0.04523918,155.96,155.91,38.08]
[1749486976107,6.4087,155.95,155.91,38.08]
[1749486976305,0.04523918,155.96,155.91,38.08]
[1749486976501,7.63636887,155.96,155.91,38.08]
[1749486977308,6.409,155.94,155.91,44.49]
[1749486977707,6.409,155.94,155.91,38.08]
[1749486978600,6.45353918,155.96,155.91,38.08]
[1749486979005,0.04523918,155.96,155.94,7.59112969]
[1749486979205,0.04523918,155.96,155.94,13.99982969]
[1749486979406,0.04523918,155.96,155.94,6.4087]
[1749486979810,0.04523918,155.96,155.93,7.59112969]
[1749486979811,0.04523918,155.96,155.95,6.4086]
[1749486989525,0.04523918,155.96,155.95,13.99972969]
[1749486989925,0.04523918,155.96,155.95,52.09972969]
[1749486991327,14.0,156.0,155.97,6.4074]
[1749486991529,16.1912,156.03,155.97,7.59112969]
[1749486991830,5.41248723,156.02,155.98,6.4073]
[1749486992127,16.1912,156.03,155.98,6.4073]
[1749486992325,6.4065,156.0,155.99,0.0472881]
[1749486994428,11.82440898,156.0,155.99,0.0472881]
[1749486995527,6.4065,156.0,155.99,0.0472881]
[1749486998232,11.82481594,156.0,155.99,0.0472881]
[1749486998533,6.4065,156.0,155.99,0.0472881]
[1749486999231,11.82512406,156.0,155.99,0.0472881]
[1749486999428,6.4065,156.0,155.99,0.0472881]
[1749487000822,0.04433827,156.02,155.99,6.4541881]
[1749487001234,6.45033827,156.02,155.99,6.4541881]
[1749487002335,0.04433827,156.02,156.01,7.59112969]
[1749487003534,0.04433827,156.02,156.01,13.99722969]
[1749487004228,0.04433827,156.02,156.01,6.4061]
[1749487004431,0.04433827,156.02,156.01,7.59112969]
[1749487004631,0.04433827,156.02,156.0,6.4064]
[1749487010231,6.45003827,156.02,156.0,6.4064]
[1749487010432,0.04433827,156.02,155.99,37.9472881]
[1749487010733,6.4061,156.01,155.99,0.0472881]
[1749487011141,0.04433827,156.02,155.99,0.0472881]
[1749487011431,0.04433827,156.02,155.99,7.63841779]
[1749487012238,6.45023827,156.02,155.99,14.04521779]
[1749487013036,6.45023827,156.02,155.99,6.4540881]
[1749487015244,6.45023827,156.02,156.0,6.4065]
[1749487015446,0.04433827,156.02,156.0,6.4065]
[1749487017343,6.45003827,156.02,156.0,6.4065]
[1749487017645,6.45003827,156.02,155.99,6.4539881]
[1749487019248,6.45003827,156.02,156.0,6.4064]
[1749487019743,6.4061,156.01,155.99,6.4540881]
[1749487020149,0.04433827,156.02,155.99,0.0472881]
[1749487020747,6.4065,156.0,155.99,0.0472881]
[1749487028250,11.79763145,156.0,155.99,0.0472881]
[1749487028451,6.4065,156.0,155.99,0.0472881]
[1749487029556,11.79391378,156.0,155.99,0.0472881]
[1749487029750,6.4065,156.0,155.99,0.0472881]
[1749487029950,11.79406043,156.0,155.99,0.0472881]
[1749487030148,6.4078,155.97,155.93,7.59112969]
[1749487030352,6.4078,155.97,155.95,6.4085]
[1749487030549,6.4071,155.99,155.93,7.59112969]
[1749487030749,23.78462969,156.01,155.93,7.59112969]
[1749487030953,5.38745925,156.0,155.95,7.59112969]
[1749487031152,0.04481638,155.99,155.95,7.59112969]
[1749487031447,0.04481638,155.99,155.97,6.4075]
[1749487032049,0.04481638,155.99,155.95,7.59112969]
[1749487032446,0.04481638,155.99,155.97,6.4076]
[1749487032952,0.04481638,155.99,155.96,6.408]
[1749487033349,6.45201638,155.99,155.96,6.408]
[1749487033861,0.04481638,155.99,155.97,6.4077]
[1749487034157,0.04481638,155.99,155.97,7.59112969]
[1749487034355,0.04481638,155.99,155.98,6.4073]
[1749487035056,0.04481638,155.99,155.97,13.99862969]
[1749487036059,0.04481638,155.99,155.98,6.4073]
[1749487037157,0.04481638,155.99,155.97,13.99872969]
[1749487037562,0.04481638,155.99,155.97,7.59112969]
[1749487037967,0.04481638,155.99,155.98,6.4073]
[1749487040460,2.1818,156.06,155.97,7.59112969]
[1749487040654,6.4047,156.05,156.02,7.59112969]
[1749487040854,2.1818,156.06,156.0,7.59112969]
[1749487041362,6.4051,156.04,156.02,6.4057]
[1749487042259,6.4053,156.03,156.01,6.45071638]
[1749487042661,0.04060143,156.05,156.01,6.45071638]
[1749487042662,6.4051,156.04,156.01,6.45071638]
[1749487043060,0.04060143,156.05,156.02,6.4056]
[1749487043358,6.4049,156.04,156.02,6.4056]
[1749487043559,6.4049,156.04,156.01,6.45081638]
[1749487044162,6.4054,156.03,156.01,6.45081638]
[1749487044364,0.04060143,156.05,156.01,6.45081638]
[1749487044559,0.04060143,156.05,156.02,6.4057]
[1749487045064,0.04060143,156.05,156.01,0.04481638]
[1749487045263,0.04060143,156.05,156.01,6.45061638]
[1749487045564,6.405,156.04,156.01,6.45061638]
[1749487045759,6.405,156.04,156.01,0.04481638]
[1749487046465,6.405,156.04,156.01,6.45061638]
[1749487046867,6.405,156.04,156.01,0.04481638]
[1749487047665,6.405,156.04,156.02,6.4057]
[1749487048363,6.405,156.04,156.01,6.45071638]
[1749487048567,0.04060143,156.05,156.01,6.45071638]
[1749487048762,0.04060143,156.05,156.01,0.04481638]
[1749487048958,0.04060143,156.05,156.01,6.45071638]
[1749487049166,6.4051,156.04,156.01,6.45071638]
[1749487049368,0.04060143,156.05,156.01,6.45071638]
[1749487049966,6.4055,156.03,156.01,6.45071638]
[1749487050163,7.59112969,156.04,156.01,0.04481638]
[1749487050368,6.4057,156.02,156.01,0.04481638]
[1749487056672,13.99682969,156.02,156.01,0.04481638]
[1749487064377,6.4057,156.02,156.01,0.04481638]
[1749487066682,6.4055,156.03,156.01,0.04481638]
[1749487067381,6.4057,156.02,156.01,0.04481638]
[1749487068283,6.4055,156.03,156.01,6.45091638]
[1749487068783,6.4055,156.03,156.01,0.04481638]
[1749487069085,6.4057,156.02,156.01,0.04481638]
[1749487069288,14.0,156.04,156.01,0.04481638]
[1749487070888,6.4056,156.03,156.01,0.04481638]
[1749487071483,6.4057,156.02,156.01,0.04481638]
[1749487072086,6.4054,156.03,156.01,6.45091638]
[1749487072988,6.4054,156.03,156.01,0.04481638]
[1749487073189,6.4057,156.02,156.01,0.04481638]
[1749487077087,11.29345739,156.02,156.01,0.04481638]
[1749487077286,6.4074,155.98,155.96,42.56775739]
[1749487077488,6.4074,155.98,155.96,48.97565739]
[1749487077887,6.4071,155.99,155.96,48.97565739]
[1749487078293,6.45475883,155.99,155.96,48.97565739]
[1749487079194,6.45475883,155.99,155.96,44.0879]
[1749487079397,6.45475883,155.99,155.97,6.4076]
[1749487080595,6.45475883,155.99,155.96,37.68]
[1749487081698,6.45475883,155.99,155.97,6.4077]
[1749487082600,6.45475883,155.99,155.96,44.088]
[1749487084003,6.4073,155.98,155.96,44.088]
[1749487084202,0.04765883,155.99,155.96,44.088]
[1749487084404,0.04765883,155.99,155.96,37.68]
[1749487084800,0.04765883,155.99,155.97,6.4075]
[1749487085304,6.45465883,155.99,155.97,6.4075]
[1749487088300,0.04765883,155.99,155.93,2.1373]
[1749487088500,7.64030215,155.98,155.91,37.24]
[1749487088702,9.76280215,155.98,155.91,37.24]
[1749487088903,7.64030215,155.96,155.91,43.65]
[1749487089099,0.04680579,155.95,155.91,37.24]
[1749487089506,6.41,155.92,155.89,6.4108]
[1749487091109,6.41,155.92,155.9,6.4106]
[1749487092105,6.45860828,155.93,155.9,6.4106]
[1749487092408,0.04910828,155.93,155.9,6.4106]
[1749487092608,6.4107,155.9,155.88,6.4113]
[1749487093003,6.4107,155.9,155.86,37.24]
[1749487093202,6.4107,155.9,155.87,6.4116]
[1749487093399,6.4111,155.89,155.86,37.24]
[1749487093598,6.45495403,155.89,155.86,37.24]
[1749487093909,0.04385403,155.89,155.87,6.4118]
[1749487094109,0.04385403,155.89,155.86,37.24]
[1749487094309,0.04385403,155.89,155.87,7.64030215]
[1749487094510,0.04385403,155.89,155.88,6.4115]
[1749487097511,0.04385403,155.89,155.87,6.4117]
[1749487097711,0.04385403,155.89,155.85,44.88030215]
[1749487098211,0.04385403,155.89,155.88,6.4114]
[1749487099011,0.04385403,155.89,155.87,6.4117]
[1749487099208,6.45495403,155.89,155.87,6.4117]
[1749487099614,0.04385403,155.89,155.87,6.4117]
[1749487100614,0.04385403,155.89,155.88,6.4114]
[1749487103617,6.4084,155.96,155.87,7.68229454]
[1749487103817,223.12316738,155.98,155.92,7.64030215]
[1749487104022,223.12316738,155.98,155.94,7.64030215]
[1749487104317,229.53076738,155.98,155.95,6.4085]
[1749487104518,223.12316738,155.98,155.94,7.64030215]
[1749487104723,6.4081,155.97,155.95,0.04281102]
[1749487104912,223.17179338,155.98,155.95,0.04281102]
[1749487105321,6.408,155.97,155.95,0.04281102]
[1749487105719,6.4082,155.96,155.95,0.04281102]
[1749487108223,6.4098,155.92,155.9,6.4105]
[1749487109029,6.4096,155.93,155.9,6.4105]
[1749487109227,6.45356861,155.93,155.9,6.4105]
[1749487109528,6.4105,155.91,155.88,44.90030215]
[1749487109727,0.04396861,155.93,155.88,37.26]
[1749487110026,6.4106,155.9,155.87,6.4115]
[1749487111627,6.4104,155.91,155.88,6.4114]
[1749487111829,6.45825674,155.91,155.88,6.4114]
[1749487112527,6.4107,155.9,155.88,6.4114]
[1749487112929,0.04785674,155.91,155.88,6.4114]
[1749487113123,6.45825674,155.91,155.88,6.4114]
[1749487114029,6.45825674,155.91,155.88,7.64030215]
[1749487114030,0.04785674,155.91,155.88,7.64030215]
[1749487115129,0.04785674,155.91,155.9,6.4106]
[1749487115317,0.04785674,155.91,155.9,14.05090215]
[1749487115525,0.04785674,155.91,155.9,51.07090215]
[1749487118431,5.674e-05,155.91,155.9,51.07090215]
[1749487118730,8.6947,155.97,155.94,6.4086]
[1749487119231,6.4082,155.96,155.94,6.4086]
[1749487119631,2.33091934,155.97,155.95,6.4086]
[1749487119929,0.04411934,155.97,155.93,7.68273302]
[1749487120925,6.4084,155.96,155.93,14.09173302]
[1749487122433,6.4084,155.96,155.94,6.409]
[1749487122635,6.4084,155.96,155.93,7.68273302]
[1749487123035,6.4084,155.96,155.93,0.04243087]
[1749487123334,6.4084,155.96,155.93,6.45153087]
[1749487124936,6.4087,155.95,155.93,6.45153087]
[1749487125136,0.04411934,155.97,155.93,6.45153087]
[1749487125334,5.408059,155.97,155.93,6.45153087]
[1749487125635,6.4085,155.96,155.93,6.45153087]
[1749487126027,6.4085,155.96,155.94,6.4089]
[1749487126230,0.04411934,155.97,155.94,7.64030215]
[1749487126833,6.45191934,155.97,155.95,6.4084]
[1749487127236,0.04411934,155.97,155.95,6.4084]
[1749487127631,6.45201934,155.97,155.94,7.64030215]
[1749487127830,0.04411934,155.97,155.94,7.64030215]
[1749487128438,0.04411934,155.97,155.95,6.4082]
[1749487129536,0.04411934,155.97,155.96,6.4082]
[1749487131338,0.04411934,155.97,155.95,6.4084]
[1749487132137,0.04411934,155.97,155.94,6.4088]
[1749487132138,6.45201934,155.97,155.94,6.4088]
[1749487132333,6.45201934,155.97,155.93,7.68273302]
[1749487132529,0.04411934,155.97,155.93,7.68273302]
[1749487132933,0.04411934,155.97,155.94,6.4087]
[1749487133234,0.04411934,155.97,155.93,7.68273302]
[1749487133441,6.45211934,155.97,155.94,6.4086]
[1749487133736,13.01936847,155.96,155.93,0.04243087]
[1749487133942,0.04411934,155.97,155.93,0.04243087]
[1749487134733,6.45211934,155.97,155.94,6.4089]
[1749487140438,6.4082,155.96,155.94,6.4089]
[1749487141233,6.45201934,155.97,155.94,6.4089]
[1749487141940,6.4082,155.96,155.94,6.4089]
[1749487142445,6.4082,155.96,155.93,14.09193302]
[1749487146155,6.4082,155.96,155.93,6.45163087]
[1749487146352,6.4082,155.96,155.93,14.09193302]
[1749487147153,0.04411934,155.97,155.93,0.04243087]
[1749487147345,5.38422345,155.96,155.93,0.04243087]
[1749487147545,0.04411934,155.97,155.93,0.04243087]
[1749487147752,5.38467723,155.96,155.93,0.04243087]
[1749487148051,5.38467723,155.95,155.93,0.04243087]
[1749487148246,0.04411934,155.97,155.93,0.04243087]
[1749487148551,5.38539216,155.96,155.93,0.04243087]
[1749487148852,6.409,155.94,155.93,0.04243087]
[1749487150052,6.4088,155.95,155.93,6.45183087]
[1749487150448,6.4088,155.95,155.93,0.04243087]
[1749487150649,6.409,155.94,155.93,0.04243087]
[1749487151054,0.04411934,155.97,155.93,0.04243087]
[1749487151253,5.3853676,155.96,155.93,0.04243087]
[1749487151550,6.4088,155.95,155.93,0.04243087]
[1749487151952,6.4088,155.95,155.93,6.45173087]
[1749487152250,6.409,155.94,155.93,0.04243087]
[1749487155457,11.78607028,155.94,155.93,0.04243087]
[1749487161262,11.78607028,155.94,155.93,4.93509202]
[1749487163163,5.37707028,155.94,155.93,0.04243087]
[1749487163363,5.37707028,155.94,155.93,4.93509202]
[1749487163961,0.04411934,155.97,155.93,4.93509202]
[1749487164263,0.04411934,155.97,155.96,4.89266115]
[1749487164458,5.41479088,155.97,155.96,4.89266115]
[1749487164857,0.04411934,155.97,155.96,4.89266115]
[1749487165058,0.04411934,155.97,155.96,11.30076115]
[1749487166665,215.39035442,156.0,155.96,4.89266115]
[1749487166964,215.39035442,156.0,155.99,4.89266115]
[1749487167163,220.76679746,156.0,155.99,11.29956115]
[1749487167360,220.76679746,156.0,155.99,14.04404846]
[1749487167861,0.0455515,156.01,156.0,6.4065]
[1749487168059,5.42033681,156.01,156.0,6.4065]
[1749487168263,0.0455515,156.01,156.0,6.4065]
[1749487168660,42.75465983,156.07,156.04,6.4045]
[1749487168661,5.95465983,156.07,156.04,6.4045]
[1749487168860,5.36468235,156.06,156.05,7.63714846]
[1749487169359,5.36468235,156.06,156.05,14.04154846]
[1749487169559,5.36468235,156.06,156.05,7.63714846]
[1749487169860,0.04080841,156.07,156.05,7.63714846]
[1749487171664,6.44460841,156.07,156.05,7.63714846]
[1749487172066,0.04080841,156.07,156.05,7.63714846]
[1749487172367,6.404,156.06,156.05,7.63714846]
[1749487172858,0.04080841,156.07,156.04,0.04595511]
[1749487173567,6.404,156.06,156.04,0.04595511]
[1749487173966,0.04080841,156.07,156.04,0.04595511]
[1749487174163,6.404,156.06,156.04,0.04595511]
[1749487174566,0.04080841,156.07,156.04,0.04595511]
[1749487176569,6.4044,156.05,156.04,0.04595511]